Workbook

Sheet Plan1
A1: RECEITAS LIGADAS AO CORONAVIRUS | I1: RECEITAS POR FONTE
A3: Data | B3: Descrição | C3: Fonte Grupo | D3: Aplicação Grupo | E3: Cód. Aplicação | F3: Valor | G3: ACUMULADO | I3: FONTE | J3: TOTAL
A4: 2020-03-31 | B4: ENFRENTAMENTO CORONAVIRUS - R. FEDERAL | C4: 05 - TRANSFERÊNCIAS E CONVÊNIOS FEDERAIS-VINCULADOS | D4: 312 - RECURSOS PARA COMBATE AO CORONAVIRUS | E4: 001 - ENFRENT. CORONAVIRUS - R. FEDERAL - SAUD | F4: R$ 102,894.00 | G4: =F4 -> R$ 102,894.00 | I4: 01 - TESOURO | J4: =SUMIF(Tabela1[Fonte Grupo],I4,Tabela1[Valor]) -> R$ 89,200.91
A5: 2020-03-31 | B5: ENFRENTAMENTO CORONAVIRUS - R. ESTADUAL | C5: 02 - TRANSFERÊNCIAS E CONVÊNIOS ESTADUAIS-VINCULADOS | D5: 312 - RECURSOS PARA COMBATE AO CORONAVIRUS | E5: 002 - ENFRENT. CORONAVIRUS - R. ESTADUAL - SAU | F5: R$ 123,472.80 | G5: =G4+F5 -> R$ 226,366.80 | I5: 02 - TRANSFERÊNCIAS E CONVÊNIOS ESTADUAIS-VINCULADOS | J5: =SUMIF(Tabela1[Fonte Grupo],I5,Tabela1[Valor]) -> R$ 516,288.00
A6: 2020-03-31 | B6: ENFRENTAMENTO CORONAVIRUS - R. ESTADUAL | C6: 02 - TRANSFERÊNCIAS E CONVÊNIOS ESTADUAIS-VINCULADOS | D6: 312 - RECURSOS PARA COMBATE AO CORONAVIRUS | E6: 002 - ENFRENT. CORONAVIRUS - R. ESTADUAL - SAU | F6: R$ 82,315.20 | G6: =G5+F6 -> R$ 308,682.00 | I6: 05 - TRANSFERÊNCIAS E CONVÊNIOS FEDERAIS-VINCULADOS | J6: =SUMIF(Tabela1[Fonte Grupo],I6,Tabela1[Valor]) -> R$ 3,926,446.60
A7: 2020-04-13 | B7: ENFRENTAMENTO CORONAVIRUS - R. FEDERAL | C7: 05 - TRANSFERÊNCIAS E CONVÊNIOS FEDERAIS-VINCULADOS | D7: 312 - RECURSOS PARA COMBATE AO CORONAVIRUS | E7: 001 - ENFRENT. CORONAVIRUS - R. FEDERAL - SAUD | F7: R$ 198,610.02 | G7: R$ 507,292.02 | I7: 08 - EMENDAS PARLAMENTARES INDIVIDUAIS | J7: =SUMIF(Tabela1[Fonte Grupo],I7,Tabela1[Valor]) -> 0
A8: 2020-04-13 | B8: ENFRENTAMENTO CORONAVIRUS - R. ESTADUAL | C8: 02 - TRANSFERÊNCIAS E CONVÊNIOS ESTADUAIS-VINCULADOS | D8: 312 - RECURSOS PARA COMBATE AO CORONAVIRUS | E8: 002 - ENFRENT. CORONAVIRUS - R. ESTADUAL - SAU | F8: R$ 200,000.00 | G8: R$ 707,292.02 | I8: TOTAL | J8: =SUM(J4:J7) -> R$ 4,531,935.51
A9: 2020-04-28 | B9: ENFRENTAMENTO CORONAVIRUS - R. FEDERAL | C9: 05 - TRANSFERÊNCIAS E CONVÊNIOS FEDERAIS-VINCULADOS | D9: 312 - RECURSOS PARA COMBATE AO CORONAVIRUS | E9: 001 - ENFRENT. CORONAVIRUS - R. FEDERAL - SAUD | F9: R$ 34,264.31 | G9: R$ 741,556.33
A10: 2020-05-04 | B10: INCREMENTO TEMPORÁRIO CUSTEIO - P.728 - EMENDA PAR. - R. FED | C10: 08 - EMENDAS PARLAMENTARES INDIVIDUAIS | D10: 312 - RECURSOS PARA COMBATE AO CORONAVIRUS | E10: 009 - INCREM.CUST.-P.728 - EMENDA PAR.- R.FED | F10: R$ 150,000.00 | G10: R$ 891,556.33
A11: 2020-05-12 | B11: AÇÕES COVID SUAS - PORT. 369 - EPI - R.FED | C11: 05 - TRANSFERÊNCIAS E CONVÊNIOS FEDERAIS-VINCULADOS | D11: 312 - RECURSOS PARA COMBATE AO CORONAVIRUS | E11: 005 - AÇÕES COVID SUAS-EPI- PORT. 369 - R.FED | F11: R$ 8,400.00 | G11: R$ 899,956.33
A12: 2020-05-12 | B12: AÇÕES COVID SUAS - PORT. 369 - ALIMENTOS - R.FED | C12: 05 - TRANSFERÊNCIAS E CONVÊNIOS FEDERAIS-VINCULADOS | D12: 312 - RECURSOS PARA COMBATE AO CORONAVIRUS | E12: 006 - AÇÕES COVID SUAS-ALIM.-PORT. 369 - R.FED | F12: R$ 61,410.00 | G12: R$ 961,366.33
A13: 2020-05-12 | B13: AÇÕES COVID SUAS - PORT. 369 - ACOLHIMENTO - R.FED | C13: 05 - TRANSFERÊNCIAS E CONVÊNIOS FEDERAIS-VINCULADOS | D13: 312 - RECURSOS PARA COMBATE AO CORONAVIRUS | E13: 007 - AÇÕES COVID SUAS-ACOL.-PORT. 369 - R.FED | F13: R$ 121,200.00 | G13: R$ 1,082,566.33
A14: 2020-05-20 | B14: INCREM. TEMP. BL. PROT. S. ESPEC. COVID | C14: 05 - TRANSFERÊNCIAS E CONVÊNIOS FEDERAIS-VINCULADOS | D14: 312 - RECURSOS PARA COMBATE AO CORONAVIRUS | E14: 011 - INCREM. TEMP. BL. PROT. S. ESPEC. COVID | F14: R$ 57,360.00 | G14: R$ 1,139,926.33
A15: 2020-05-20 | B15: INCREM. TEMP. BL. PROT. S. BASICA. COVID | C15: 05 - TRANSFERÊNCIAS E CONVÊNIOS FEDERAIS-VINCULADOS | D15: 312 - RECURSOS PARA COMBATE AO CORONAVIRUS | E15: 012 - INCREM. TEMP. BL. PROT. S. BASICA. COVID | F15: R$ 44,175.00 | G15: R$ 1,184,101.33
A16: 2020-05-29 | B16: REM. DEP. BANC. - AÇÕES COVID SUAS EPI - P. 369 | C16: 05 - TRANSFERÊNCIAS E CONVÊNIOS FEDERAIS-VINCULADOS | D16: 312 - RECURSOS PARA COMBATE AO CORONAVIRUS | E16: 005 - AÇÕES COVID SUAS-EPI- PORT. 369 - R.FED | F16: R$ 2.59 | G16: R$ 1,184,103.92
A17: 2020-05-29 | B17: REM. DEP. BANC. - AÇÕES COVID SUAS ALIMENTOS - P. 369 | C17: 05 - TRANSFERÊNCIAS E CONVÊNIOS FEDERAIS-VINCULADOS | D17: 312 - RECURSOS PARA COMBATE AO CORONAVIRUS | E17: 006 - AÇÕES COVID SUAS-ALIM.-PORT. 369 - R.FED | F17: R$ 18.97 | G17: R$ 1,184,122.89
A18: 2020-05-29 | B18: REM. DEP. BANC. - AÇÕES COVID SUAS ACOLHIMENTO - P. 369 | C18: 05 - TRANSFERÊNCIAS E CONVÊNIOS FEDERAIS-VINCULADOS | D18: 312 - RECURSOS PARA COMBATE AO CORONAVIRUS | E18: 007 - AÇÕES COVID SUAS-ACOL.-PORT. 369 - R.FED | F18: R$ 37.43 | G18: R$ 1,184,160.32
A19: 2020-05-29 | B19: Receita Desc. Emp. 5015/1/OR | C19: 01 - TESOURO | D19: 312 - RECURSOS PARA COMBATE AO CORONAVIRUS | E19: 008 - RED. SAL. CARGOS COMISSÃO - DEC. 1242/20 | F19: R$ 918.72 | G19: R$ 1,185,079.04
A20: 2020-05-29 | B20: Receita Desc. Emp. 5024/1/OR | C20: 01 - TESOURO | D20: 312 - RECURSOS PARA COMBATE AO CORONAVIRUS | E20: 008 - RED. SAL. CARGOS COMISSÃO - DEC. 1242/20 | F20: R$ 918.72 | G20: R$ 1,185,997.76
A21: 2020-05-29 | B21: Receita Desc. Emp. 4985/1/OR | C21: 01 - TESOURO | D21: 312 - RECURSOS PARA COMBATE AO CORONAVIRUS | E21: 008 - RED. SAL. CARGOS COMISSÃO - DEC. 1242/20 | F21: R$ 37,873.35 | G21: R$ 1,223,871.11
A22: 2020-06-09 | B22: FPM - AUX. FINANCEIRO - LEI 173/20 - COVID | C22: 05 - TRANSFERÊNCIAS E CONVÊNIOS FEDERAIS-VINCULADOS | D22: 312 - RECURSOS PARA COMBATE AO CORONAVIRUS | E22: 015 - AUX. FINANCEIRO - LEI 173/20 - COVID | F22: R$ 187,880.32 | G22: R$ 1,411,751.43
A23: 2020-06-12 | B23: Receita Desc. Emp. 5542/1/OR | C23: 01 - TESOURO | D23: 312 - RECURSOS PARA COMBATE AO CORONAVIRUS | E23: 008 - RED. SAL. CARGOS COMISSÃO - DEC. 1242/20 | F23: R$ 108.58 | G23: R$ 1,411,860.01
A24: 2020-06-12 | B24: Receita Desc. Emp. 5495/1/OR | C24: 01 - TESOURO | D24: 312 - RECURSOS PARA COMBATE AO CORONAVIRUS | E24: 008 - RED. SAL. CARGOS COMISSÃO - DEC. 1242/20 | F24: R$ 179.57 | G24: R$ 1,412,039.58
A25: 2020-06-22 | B25: ACOL. IDOSOS BL. P.S.E. ALTA C. - R. EST - Resolução SEDS nº 10 de 08/05/2020. | C25: 02 - TRANSFERÊNCIAS E CONVÊNIOS ESTADUAIS-VINCULADOS | D25: 312 - RECURSOS PARA COMBATE AO CORONAVIRUS | E25: 013 - ACOL. IDOSOS BL. P.S.E. ALTA C. - R. EST | F25: R$ 10,500.00 | G25: R$ 1,422,539.58
A26: 2020-06-30 | B26: REM. DEP. BANC. - AÇÕES COVID SUAS EPI - P. 369 | C26: 05 - TRANSFERÊNCIAS E CONVÊNIOS FEDERAIS-VINCULADOS | D26: 312 - RECURSOS PARA COMBATE AO CORONAVIRUS | E26: 005 - AÇÕES COVID SUAS-EPI- PORT. 369 - R.FED | F26: R$ 3.71 | G26: =G25+F26 -> R$ 1,422,543.29
A27: 2020-06-30 | B27: AÇÕES COVID SUAS-ALIM.-PORT. 369 - R.FED | C27: 05 - TRANSFERÊNCIAS E CONVÊNIOS FEDERAIS-VINCULADOS | D27: 312 - RECURSOS PARA COMBATE AO CORONAVIRUS | E27: 006 - AÇÕES COVID SUAS-ALIM.-PORT. 369 - R.FED | F27: R$ 61,410.00 | G27: R$ 1,483,953.29
A28: 2020-06-30 | B28: REM. DEP. BANC. - AÇÕES COVID SUAS ALIMENTOS - P. 369 | C28: 05 - TRANSFERÊNCIAS E CONVÊNIOS FEDERAIS-VINCULADOS | D28: 312 - RECURSOS PARA COMBATE AO CORONAVIRUS | E28: 006 - AÇÕES COVID SUAS-ALIM.-PORT. 369 - R.FED | F28: R$ 30.64 | G28: R$ 1,483,983.93
A29: 2020-06-30 | B29: AÇÕES COVID SUAS-ACOL.-PORT. 369 - R.FED | C29: 05 - TRANSFERÊNCIAS E CONVÊNIOS FEDERAIS-VINCULADOS | D29: 312 - RECURSOS PARA COMBATE AO CORONAVIRUS | E29: 007 - AÇÕES COVID SUAS-ACOL.-PORT. 369 - R.FED | F29: R$ 121,200.00 | G29: R$ 1,605,183.93
A30: 2020-06-30 | B30: REM. DEP. BANC. - AÇÕES COVID SUAS ACOLHIMENTO - P. 369 | C30: 05 - TRANSFERÊNCIAS E CONVÊNIOS FEDERAIS-VINCULADOS | D30: 312 - RECURSOS PARA COMBATE AO CORONAVIRUS | E30: 007 - AÇÕES COVID SUAS-ACOL.-PORT. 369 - R.FED | F30: R$ 60.49 | G30: R$ 1,605,244.42
A31: 2020-06-30 | B31: INCREM. TEMP. BL. PROT. S. ESPEC. COVID | C31: 05 - TRANSFERÊNCIAS E CONVÊNIOS FEDERAIS-VINCULADOS | D31: 312 - RECURSOS PARA COMBATE AO CORONAVIRUS | E31: 011 - INCREM. TEMP. BL. PROT. S. ESPEC. COVID | F31: R$ 57,360.00 | G31: R$ 1,662,604.42
A32: 2020-06-30 | B32: INCREM. TEMP. BL. PROT. S. BASICA. COVID | C32: 05 - TRANSFERÊNCIAS E CONVÊNIOS FEDERAIS-VINCULADOS | D32: 312 - RECURSOS PARA COMBATE AO CORONAVIRUS | E32: 012 - INCREM. TEMP. BL. PROT. S. BASICA. COVID | F32: R$ 44,175.00 | G32: R$ 1,706,779.42
A33: 2020-07-01 | B33: ENFRENTAMENTO CORONAVIRUS - R. ESTADUAL | C33: 02 - TRANSFERÊNCIAS E CONVÊNIOS ESTADUAIS-VINCULADOS | D33: 312 - RECURSOS PARA COMBATE AO CORONAVIRUS | E33: 002 - ENFRENT. CORONAVIRUS - R. ESTADUAL - SAU | F33: R$ 100,000.00 | G33: =G32+F33 -> R$ 1,806,779.42
A34: 2020-07-08 | B34: PR.25000070682202009-ATENÇÃO BÁSICA- ENFRENT.COVID-R.FED | C34: 05 - TRANSFERÊNCIAS E CONVÊNIOS FEDERAIS-VINCULADOS | D34: 312 - RECURSOS PARA COMBATE AO CORONAVIRUS | E34: 017 - PR.25000070682202009-ENFRENT.COVID-R.FED | F34: R$ 50,000.00 | G34: =G33+F34 -> R$ 1,856,779.42
A35: 2020-07-10 | B35: Receita Desc. Emp. 6525/1/OR | C35: 01 - TESOURO | D35: 312 - RECURSOS PARA COMBATE AO CORONAVIRUS | E35: 008 - RED. SAL. CARGOS COMISSÃO - DEC. 1242/20 | F35: R$ 66.81 | G35: =G34+F35 -> R$ 1,856,846.23
A36: 2020-07-10 | B36: Receita Desc. Emp. 6526/1/OR | C36: 01 - TESOURO | D36: 312 - RECURSOS PARA COMBATE AO CORONAVIRUS | E36: 008 - RED. SAL. CARGOS COMISSÃO - DEC. 1242/20 | F36: R$ 180.96 | G36: R$ 1,857,027.19
A37: 2020-07-13 | B37: FPM - AUX. FINANCEIRO - LEI 173/20 - COVID | C37: 05 - TRANSFERÊNCIAS E CONVÊNIOS FEDERAIS-VINCULADOS | D37: 312 - RECURSOS PARA COMBATE AO CORONAVIRUS | E37: 015 - AUX. FINANCEIRO - LEI 173/20 - COVID | F37: R$ 187,880.32 | G37: R$ 2,044,907.51
A38: 2020-07-14 | B38: Receita Desc. Emp. 6552/1/OR | C38: 01 - TESOURO | D38: 312 - RECURSOS PARA COMBATE AO CORONAVIRUS | E38: 008 - RED. SAL. CARGOS COMISSÃO - DEC. 1242/20 | F38: R$ 1,049.57 | G38: R$ 2,045,957.08
A39: 2020-07-14 | B39: Receita Desc. Emp. 6553/1/OR | C39: 01 - TESOURO | D39: 312 - RECURSOS PARA COMBATE AO CORONAVIRUS | E39: 008 - RED. SAL. CARGOS COMISSÃO - DEC. 1242/20 | F39: R$ 625.70 | G39: R$ 2,046,582.78
A40: 2020-07-14 | B40: MULTA FISCALIZAÇÃO COMÉRCIO - DECRETO 1261/20 - PRINCIPAL | C40: 01 - TESOURO | D40: 312 - RECURSOS PARA COMBATE AO CORONAVIRUS | E40: 014 - MULTA FISCALIZ. COMÉRCIO - DEC. 1261/20 | F40: R$ 1,104.40 | G40: R$ 2,047,687.18
A41: 2020-07-14 | B41: MULTA FISCALIZAÇÃO COMÉRCIO - DECRETO 1261/20 - PRINCIPAL | C41: 01 - TESOURO | D41: 312 - RECURSOS PARA COMBATE AO CORONAVIRUS | E41: 014 - MULTA FISCALIZ. COMÉRCIO - DEC. 1261/20 | F41: R$ 552.20 | G41: R$ 2,048,239.38
A42: 2020-07-15 | B42: MULTA FISCALIZAÇÃO COMÉRCIO - DECRETO 1261/20 - PRINCIPAL | C42: 01 - TESOURO | D42: 312 - RECURSOS PARA COMBATE AO CORONAVIRUS | E42: 014 - MULTA FISCALIZ. COMÉRCIO - DEC. 1261/20 | F42: R$ 552.20 | G42: R$ 2,048,791.58
A43: 2020-07-15 | B43: MULTA FISCALIZAÇÃO COMÉRCIO - DECRETO 1261/20 - PRINCIPAL | C43: 01 - TESOURO | D43: 312 - RECURSOS PARA COMBATE AO CORONAVIRUS | E43: 014 - MULTA FISCALIZ. COMÉRCIO - DEC. 1261/20 | F43: R$ 552.20 | G43: R$ 2,049,343.78
A44: 2020-07-15 | B44: ENFRENTAMENTO CORONAVIRUS - R. FEDERAL | C44: 05 - TRANSFERÊNCIAS E CONVÊNIOS FEDERAIS-VINCULADOS | D44: 312 - RECURSOS PARA COMBATE AO CORONAVIRUS | E44: 001 - ENFRENT. CORONAVIRUS - R. FEDERAL - SAUD | F44: R$ 450,000.00 | G44: R$ 2,499,343.78
A45: 2020-07-22 | B45: MULTA FISCALIZAÇÃO COMÉRCIO - DECRETO 1261/20 - PRINCIPAL | C45: 01 - TESOURO | D45: 312 - RECURSOS PARA COMBATE AO CORONAVIRUS | E45: 014 - MULTA FISCALIZ. COMÉRCIO - DEC. 1261/20 | F45: R$ 541.38 | G45: R$ 2,499,885.16
A46: 2020-07-22 | B46: MULTA FISCALIZAÇÃO COMÉRCIO - DECRETO 1261/20 - PRINCIPAL | C46: 01 - TESOURO | D46: 312 - RECURSOS PARA COMBATE AO CORONAVIRUS | E46: 014 - MULTA FISCALIZ. COMÉRCIO - DEC. 1261/20 | F46: R$ 541.38 | G46: R$ 2,500,426.54
A47: 2020-07-30 | B47: MULTA FISCALIZAÇÃO COMÉRCIO - DECRETO 1261/20 - PRINCIPAL | C47: 01 - TESOURO | D47: 312 - RECURSOS PARA COMBATE AO CORONAVIRUS | E47: 014 - MULTA FISCALIZ. COMÉRCIO - DEC. 1261/20 | F47: R$ 1,656.60 | G47: =G46+F47 -> R$ 2,502,083.14
A48: 2020-07-31 | B48: Receita Desc. Emp. 7311/1/OR | C48: 01 - TESOURO | D48: 312 - RECURSOS PARA COMBATE AO CORONAVIRUS | E48: 008 - RED. SAL. CARGOS COMISSÃO - DEC. 1242/20 | F48: R$ 33,789.22 | G48: =G47+F48 -> R$ 2,535,872.36
A49: 2020-07-31 | B49: REM. DEP. BANC. - AÇÕES COVID SUAS EPI - P. 369 | C49: 05 - TRANSFERÊNCIAS E CONVÊNIOS FEDERAIS-VINCULADOS | D49: 312 - RECURSOS PARA COMBATE AO CORONAVIRUS | E49: 005 - AÇÕES COVID SUAS-EPI- PORT. 369 - R.FED | F49: R$ 2.75 | G49: R$ 2,535,875.11
A50: 2020-07-31 | B50: REM. DEP. BANC. - AÇÕES COVID SUAS ALIMENTOS - P. 369 | C50: 05 - TRANSFERÊNCIAS E CONVÊNIOS FEDERAIS-VINCULADOS | D50: 312 - RECURSOS PARA COMBATE AO CORONAVIRUS | E50: 006 - AÇÕES COVID SUAS-ALIM.-PORT. 369 - R.FED | F50: R$ 40.22 | G50: R$ 2,535,915.33
A51: 2020-07-31 | B51: REM. DEP. BANC. - AÇÕES COVID SUAS ACOLHIMENTO - P. 369 | C51: 05 - TRANSFERÊNCIAS E CONVÊNIOS FEDERAIS-VINCULADOS | D51: 312 - RECURSOS PARA COMBATE AO CORONAVIRUS | E51: 007 - AÇÕES COVID SUAS-ACOL.-PORT. 369 - R.FED | F51: R$ 79.37 | G51: R$ 2,535,994.70
A52: 2020-07-31 | B52: Receita Desc. Emp. 7342/1/OR | C52: 01 - TESOURO | D52: 312 - RECURSOS PARA COMBATE AO CORONAVIRUS | E52: 008 - RED. SAL. CARGOS COMISSÃO - DEC. 1242/20 | F52: R$ 918.72 | G52: R$ 2,536,913.42
A53: 2020-07-31 | B53: Receita Desc. Emp. 7353/1/OR | C53: 01 - TESOURO | D53: 312 - RECURSOS PARA COMBATE AO CORONAVIRUS | E53: 008 - RED. SAL. CARGOS COMISSÃO - DEC. 1242/20 | F53: R$ 918.72 | G53: R$ 2,537,832.14
A54: 2020-07-31 | B54: ENFRENTAMENTO CORONAVIRUS - R. ESTADUAL - Estorno de lçto. para correção de ficha. Alterado para ficha nº 451. | C54: 02 - TRANSFERÊNCIAS E CONVÊNIOS ESTADUAIS-VINCULADOS | D54: 312 - RECURSOS PARA COMBATE AO CORONAVIRUS | E54: 002 - ENFRENT. CORONAVIRUS - R. ESTADUAL - SAU | F54: -R$ 200,000.00 | G54: R$ 2,337,832.14
A55: 2020-07-31 | B55: REM. DEP. BANC. - AÇÕES COVID SUAS EPI - P. 369 | C55: 05 - TRANSFERÊNCIAS E CONVÊNIOS FEDERAIS-VINCULADOS | D55: 312 - RECURSOS PARA COMBATE AO CORONAVIRUS | E55: 005 - AÇÕES COVID SUAS-EPI- PORT. 369 - R.FED | F55: 0 | G55: R$ 2,337,832.14
A56: 2020-07-31 | B56: ENFRENT. COVID - R. EST. SAUDE - INVEST - AQUISIÇÃO VEÍCULO - Correção de ficha. Alterado da ficha nº 409. | C56: 02 - TRANSFERÊNCIAS E CONVÊNIOS ESTADUAIS-VINCULADOS | D56: 312 - RECURSOS PARA COMBATE AO CORONAVIRUS | E56: 016 - ENFRENT. COVID - R. EST. SAUDE - INVEST | F56: R$ 200,000.00 | G56: R$ 2,537,832.14
A57: 2020-08-03 | B57: REC. REM. DEP. BANC. AUX. FINANCEIRO LEI 173/20 COVID | C57: 01 - TESOURO | D57: 312 - RECURSOS PARA COMBATE AO CORONAVIRUS | E57: 015 - AUX. FINANCEIRO - LEI 173/20 - COVID | F57: R$ 11.37 | G57: R$ 2,537,843.51
A58: 2020-08-11 | B58: ENFRENTAMENTO CORONAVIRUS - R. FEDERAL | C58: 05 - TRANSFERÊNCIAS E CONVÊNIOS FEDERAIS-VINCULADOS | D58: 312 - RECURSOS PARA COMBATE AO CORONAVIRUS | E58: 001 - ENFRENT. CORONAVIRUS - R. FEDERAL - SAUD | F58: R$ 450,000.00 | G58: =G57+F58 -> R$ 2,987,843.51
A59: 2020-08-12 | B59: FPM - AUX. FINANCEIRO - LEI 173/20 - COVID | C59: 05 - TRANSFERÊNCIAS E CONVÊNIOS FEDERAIS-VINCULADOS | D59: 312 - RECURSOS PARA COMBATE AO CORONAVIRUS | E59: 015 - AUX. FINANCEIRO - LEI 173/20 - COVID | F59: R$ 187,880.32 | G59: R$ 3,175,723.83
A60: 2020-08-13 | B60: ENFRENTAMENTO CORONAVIRUS - R. FEDERAL | C60: 05 - TRANSFERÊNCIAS E CONVÊNIOS FEDERAIS-VINCULADOS | D60: 312 - RECURSOS PARA COMBATE AO CORONAVIRUS | E60: 001 - ENFRENT. CORONAVIRUS - R. FEDERAL - SAUD | F60: R$ 691,637.01 | G60: R$ 3,867,360.84
A61: 2020-08-13 | B61: PORTARIA Nº 1857 PROGRAMA SAÚDE NA ESCOLA - COVID - REC FED | C61: 05 - TRANSFERÊNCIAS E CONVÊNIOS FEDERAIS-VINCULADOS | D61: 312 - RECURSOS PARA COMBATE AO CORONAVIRUS | E61: 018 - PORT1857 SAÚDE NA ESCOLA - COVID - R.FED | F61: R$ 90,640.00 | G61: R$ 3,958,000.84
A62: 2020-08-19 | B62: MULTA FISCALIZAÇÃO COMÉRCIO - DECRETO 1261/20 - PRINCIPAL | C62: 01 - TESOURO | D62: 312 - RECURSOS PARA COMBATE AO CORONAVIRUS | E62: 014 - MULTA FISCALIZ. COMÉRCIO - DEC. 1261/20 | F62: R$ 552.20 | G62: =G61+F62 -> R$ 3,958,553.04
A63: 2020-08-20 | B63: MULTA FISCALIZAÇÃO COMÉRCIO - DECRETO 1261/20 - PRINCIPAL | C63: 01 - TESOURO | D63: 312 - RECURSOS PARA COMBATE AO CORONAVIRUS | E63: 014 - MULTA FISCALIZ. COMÉRCIO - DEC. 1261/20 | F63: R$ 552.20 | G63: R$ 3,959,105.24
A64: 2020-08-25 | B64: INCREM. TEMP. BL. PROT. S. ESPEC. COVID | C64: 05 - TRANSFERÊNCIAS E CONVÊNIOS FEDERAIS-VINCULADOS | D64: 312 - RECURSOS PARA COMBATE AO CORONAVIRUS | E64: 011 - INCREM. TEMP. BL. PROT. S. ESPEC. COVID | F64: R$ 19,120.00 | G64: =G63+F64 -> R$ 3,978,225.24
A65: 2020-08-25 | B65: INCREM. TEMP. BL. PROT. S. BASICA. COVID | C65: 05 - TRANSFERÊNCIAS E CONVÊNIOS FEDERAIS-VINCULADOS | D65: 312 - RECURSOS PARA COMBATE AO CORONAVIRUS | E65: 012 - INCREM. TEMP. BL. PROT. S. BASICA. COVID | F65: R$ 29,450.00 | G65: R$ 4,007,675.24
A66: 2020-08-28 | B66: MULTA FISCALIZAÇÃO COMÉRCIO - DECRETO 1261/20 - PRINCIPAL | C66: 01 - TESOURO | D66: 312 - RECURSOS PARA COMBATE AO CORONAVIRUS | E66: 014 - MULTA FISCALIZ. COMÉRCIO - DEC. 1261/20 | F66: R$ 552.20 | G66: R$ 4,008,227.44
A67: 2020-08-31 | B67: Receita Desc. Emp. 8387/1/OR | C67: 01 - TESOURO | D67: 312 - RECURSOS PARA COMBATE AO CORONAVIRUS | E67: 008 - RED. SAL. CARGOS COMISSÃO - DEC. 1242/20 | F67: R$ 1,085.76 | G67: =G66+F67 -> R$ 4,009,313.20
A68: 2020-08-31 | B68: REM. DEP. BANC. - AÇÕES COVID SUAS EPI - P. 369 | C68: 05 - TRANSFERÊNCIAS E CONVÊNIOS FEDERAIS-VINCULADOS | D68: 312 - RECURSOS PARA COMBATE AO CORONAVIRUS | E68: 005 - AÇÕES COVID SUAS-EPI- PORT. 369 - R.FED | F68: R$ 1.14 | G68: R$ 4,009,314.34
A69: 2020-08-31 | B69: REC. REM. DEP. BANC. AUX. FINANCEIRO LEI 173/20 COVID | C69: 01 - TESOURO | D69: 312 - RECURSOS PARA COMBATE AO CORONAVIRUS | E69: 015 - AUX. FINANCEIRO - LEI 173/20 - COVID | F69: R$ 32.85 | G69: R$ 4,009,347.19
A70: 2020-08-31 | B70: REM. DEP. BANC. - AÇÕES COVID SUAS ALIMENTOS - P. 369 | C70: 05 - TRANSFERÊNCIAS E CONVÊNIOS FEDERAIS-VINCULADOS | D70: 312 - RECURSOS PARA COMBATE AO CORONAVIRUS | E70: 006 - AÇÕES COVID SUAS-ALIM.-PORT. 369 - R.FED | F70: R$ 16.75 | G70: R$ 4,009,363.94
A71: 2020-08-31 | B71: REM. DEP. BANC. - AÇÕES COVID SUAS ACOLHIMENTO - P. 369 | C71: 05 - TRANSFERÊNCIAS E CONVÊNIOS FEDERAIS-VINCULADOS | D71: 312 - RECURSOS PARA COMBATE AO CORONAVIRUS | E71: 007 - AÇÕES COVID SUAS-ACOL.-PORT. 369 - R.FED | F71: R$ 33.05 | G71: R$ 4,009,396.99
A72: 2020-09-11 | B72: FPM - AUX. FINANCEIRO - LEI 173/20 - COVID | C72: 05 - TRANSFERÊNCIAS E CONVÊNIOS FEDERAIS-VINCULADOS | D72: 312 - RECURSOS PARA COMBATE AO CORONAVIRUS | E72: 015 - AUX. FINANCEIRO - LEI 173/20 - COVID | F72: R$ 188,017.00 | G72: =G71+F72 -> R$ 4,197,413.99
A73: 2020-09-14 | B73: MULTA FISCALIZAÇÃO COMÉRCIO - DECRETO 1261/20 - PRINCIPAL | C73: 01 - TESOURO | D73: 312 - RECURSOS PARA COMBATE AO CORONAVIRUS | E73: 014 - MULTA FISCALIZ. COMÉRCIO - DEC. 1261/20 | F73: R$ 552.20 | G73: =G72+F73 -> R$ 4,197,966.19
A74: 2020-09-14 | B74: MULTA FISCALIZAÇÃO COMÉRCIO - DECRETO 1261/20 - PRINCIPAL | C74: 01 - TESOURO | D74: 312 - RECURSOS PARA COMBATE AO CORONAVIRUS | E74: 014 - MULTA FISCALIZ. COMÉRCIO - DEC. 1261/20 | F74: R$ 1,093.58 | G74: R$ 4,199,059.77
A75: 2020-09-22 | B75: REST. REND. APLIC. DE REPASSE COVID SANTA CASA P.A.1569/2020 | C75: 05 - TRANSFERÊNCIAS E CONVÊNIOS FEDERAIS-VINCULADOS | D75: 312 - RECURSOS PARA COMBATE AO CORONAVIRUS | E75: 015 - AUX. FINANCEIRO - LEI 173/20 - COVID | F75: R$ 0.80 | G75: R$ 4,199,060.57
A76: 2020-09-29 | B76: MULTA FISCALIZAÇÃO COMÉRCIO - DECRETO 1261/20 - PRINCIPAL | C76: 01 - TESOURO | D76: 312 - RECURSOS PARA COMBATE AO CORONAVIRUS | E76: 014 - MULTA FISCALIZ. COMÉRCIO - DEC. 1261/20 | F76: R$ 552.20 | G76: =G75+F76 -> R$ 4,199,612.77
A77: 2020-09-29 | B77: MULTA FISCALIZAÇÃO COMÉRCIO - DECRETO 1261/20 - PRINCIPAL | C77: 01 - TESOURO | D77: 312 - RECURSOS PARA COMBATE AO CORONAVIRUS | E77: 014 - MULTA FISCALIZ. COMÉRCIO - DEC. 1261/20 | F77: R$ 552.20 | G77: R$ 4,200,164.97
A78: 2020-09-30 | B78: ENFRENTAMENTO CORONAVIRUS - R. FEDERAL | C78: 05 - TRANSFERÊNCIAS E CONVÊNIOS FEDERAIS-VINCULADOS | D78: 312 - RECURSOS PARA COMBATE AO CORONAVIRUS | E78: 001 - ENFRENT. CORONAVIRUS - R. FEDERAL - SAUD | F78: R$ 7,280.00 | G78: R$ 4,207,444.97
A79: 2020-09-30 | B79: REM. DEP. BANC. - AÇÕES COVID SUAS EPI - P. 369 | C79: 05 - TRANSFERÊNCIAS E CONVÊNIOS FEDERAIS-VINCULADOS | D79: 312 - RECURSOS PARA COMBATE AO CORONAVIRUS | E79: 005 - AÇÕES COVID SUAS-EPI- PORT. 369 - R.FED | F79: R$ 0.61 | G79: R$ 4,207,445.58
A80: 2020-09-30 | B80: REC. REM. DEP. BANC. AUX. FINANCEIRO LEI 173/20 COVID | C80: 01 - TESOURO | D80: 312 - RECURSOS PARA COMBATE AO CORONAVIRUS | E80: 015 - AUX. FINANCEIRO - LEI 173/20 - COVID | F80: R$ 24.48 | G80: R$ 4,207,470.06
A81: 2020-09-30 | B81: REM. DEP. BANC. - AÇÕES COVID SUAS ALIMENTOS - P. 369 | C81: 05 - TRANSFERÊNCIAS E CONVÊNIOS FEDERAIS-VINCULADOS | D81: 312 - RECURSOS PARA COMBATE AO CORONAVIRUS | E81: 006 - AÇÕES COVID SUAS-ALIM.-PORT. 369 - R.FED | F81: R$ 9.59 | G81: R$ 4,207,479.65
A82: 2020-09-30 | B82: REM. DEP. BANC. - AÇÕES COVID SUAS ACOLHIMENTO - P. 369 | C82: 05 - TRANSFERÊNCIAS E CONVÊNIOS FEDERAIS-VINCULADOS | D82: 312 - RECURSOS PARA COMBATE AO CORONAVIRUS | E82: 007 - AÇÕES COVID SUAS-ACOL.-PORT. 369 - R.FED | F82: R$ 9.62 | G82: R$ 4,207,489.27
A83: 2020-10-01 | B83: ENFRENTAMENTO CORONAVIRUS - R. FEDERAL | C83: 05 - TRANSFERÊNCIAS E CONVÊNIOS FEDERAIS-VINCULADOS | D83: 312 - RECURSOS PARA COMBATE AO CORONAVIRUS | E83: 001 - ENFRENT. CORONAVIRUS - R. FEDERAL - SAUD | F83: R$ 160,096.14 | G83: R$ 4,367,585.41
A84: 2020-10-20 | B84: MULTA FISCALIZAÇÃO COMÉRCIO - DECRETO 1261/20 - PRINCIPAL | C84: 01 - TESOURO | D84: 312 - RECURSOS PARA COMBATE AO CORONAVIRUS | E84: 014 - MULTA FISCALIZ. COMÉRCIO - DEC. 1261/20 | F84: R$ 552.20 | G84: =G83+F84 -> R$ 4,368,137.61
A85: 2020-10-26 | B85: MULTA FISCALIZAÇÃO COMÉRCIO - DECRETO 1261/20 - PRINCIPAL | C85: 01 - TESOURO | D85: 312 - RECURSOS PARA COMBATE AO CORONAVIRUS | E85: 014 - MULTA FISCALIZ. COMÉRCIO - DEC. 1261/20 | F85: R$ 10.82 | G85: =G84+F85 -> R$ 4,368,148.43
A86: 2020-10-29 | B86: PORTARIA 2358 ENFRENTAMENTO EMERGENCIAL SAUDE COVID - R. FED | C86: 05 - TRANSFERÊNCIAS E CONVÊNIOS FEDERAIS-VINCULADOS | D86: 312 - RECURSOS PARA COMBATE AO CORONAVIRUS | E86: 020 - PORT 2358 ENFR EMERG SAUDE COVID - R FED | F86: R$ 78,000.00 | G86: R$ 4,446,148.43
A87: 2020-10-29 | B87: PORTARIA 2405 ENFRENTAMENTO EMERGENCIAL SAUDE COVID - R. FED | C87: 05 - TRANSFERÊNCIAS E CONVÊNIOS FEDERAIS-VINCULADOS | D87: 312 - RECURSOS PARA COMBATE AO CORONAVIRUS | E87: 021 - PORT 2405 ENFR EMERG SAUDE COVID - R FED | F87: R$ 66,400.00 | G87: R$ 4,512,548.43
A88: 2020-10-29 | B88: PORTARIA 2222 ENFRENTAMENTO EMERGENCIAL SAUDE COVID - R. FED | C88: 05 - TRANSFERÊNCIAS E CONVÊNIOS FEDERAIS-VINCULADOS | D88: 312 - RECURSOS PARA COMBATE AO CORONAVIRUS | E88: 019 - PORT 2222 ENFR EMERG SAUDE COVID - R FED | F88: R$ 150.00 | G88: R$ 4,512,698.43
A89: 2020-10-29 | B89: PORTARIA 2222 ENFRENTAMENTO EMERGENCIAL SAUDE COVID - R. FED | C89: 05 - TRANSFERÊNCIAS E CONVÊNIOS FEDERAIS-VINCULADOS | D89: 312 - RECURSOS PARA COMBATE AO CORONAVIRUS | E89: 019 - PORT 2222 ENFR EMERG SAUDE COVID - R FED | F89: R$ 19,200.00 | G89: R$ 4,531,898.43
A90: 2020-10-30 | B90: INCREM.CUST.-P.728 - EMENDA PAR.- R.FED- Alter. fich. 423 p/ 476-correç. do grup.¨08 p/ 05¨- cod.apl.312 P/800 | C90: 05 - TRANSFERÊNCIAS E CONVÊNIOS FEDERAIS-VINCULADOS | D90: 800 - TRANSF.UNIÃO EMENDAS PARLAM.INDIVIDUAIS | E90: 009 - INCREM.CUST.-P.728 - EMENDA PAR.- R.FED | F90: R$ 150,000.00 | G90: =G89+F90 -> R$ 4,681,898.43
A91: 2020-10-30 | B91: REM. DEP. BANC. - AÇÕES COVID SUAS EPI - P. 369 | C91: 05 - TRANSFERÊNCIAS E CONVÊNIOS FEDERAIS-VINCULADOS | D91: 312 - RECURSOS PARA COMBATE AO CORONAVIRUS | E91: 005 - AÇÕES COVID SUAS-EPI- PORT. 369 - R.FED | F91: R$ 0.76 | G91: =G90+F91 -> R$ 4,681,899.19
A92: 2020-10-30 | B92: REC. REM. DEP. BANC. AUX. FINANCEIRO LEI 173/20 COVID | C92: 01 - TESOURO | D92: 312 - RECURSOS PARA COMBATE AO CORONAVIRUS | E92: 015 - AUX. FINANCEIRO - LEI 173/20 - COVID | F92: R$ 27.65 | G92: R$ 4,681,926.84
A93: 2020-10-30 | B93: REM. DEP. BANC. - AÇÕES COVID SUAS ALIMENTOS - P. 369 | C93: 05 - TRANSFERÊNCIAS E CONVÊNIOS FEDERAIS-VINCULADOS | D93: 312 - RECURSOS PARA COMBATE AO CORONAVIRUS | E93: 006 - AÇÕES COVID SUAS-ALIM.-PORT. 369 - R.FED | F93: R$ 6.30 | G93: R$ 4,681,933.14
A94: 2020-10-30 | B94: REM. DEP. BANC. - AÇÕES COVID SUAS ACOLHIMENTO - P. 369 | C94: 05 - TRANSFERÊNCIAS E CONVÊNIOS FEDERAIS-VINCULADOS | D94: 312 - RECURSOS PARA COMBATE AO CORONAVIRUS | E94: 007 - AÇÕES COVID SUAS-ACOL.-PORT. 369 - R.FED | F94: R$ 2.37 | G94: R$ 4,681,935.51
A95: 2020-10-30 | B95: INCR. TEMP. CUSTEIO - P.728 - EMEN. PAR. - R. FED- Alter. fich. 423 p/ 476-correç. do grup.¨08 p/ 05¨- cod.apl.312 P/800 | C95: 08 - EMENDAS PARLAMENTARES INDIVIDUAIS | D95: 312 - RECURSOS PARA COMBATE AO CORONAVIRUS | E95: 009 - INCREM.CUST.-P.728 - EMENDA PAR.- R.FED | F95: -R$ 150,000.00 | G95: R$ 4,531,935.51
